[Event "IX Famalicao Open 2022"]
[Site "Vila Nova de Famalicao"]
[Date "2022.07.27"]
[Round "5.10"]
[White "Goncalves, Lucas Jordao"]
[Black "Rodriguez Lopez, Rafael"]
[Result "0-1"]
[ECO "B90"]
[WhiteElo "1813"]
[BlackElo "2172"]
[Annotator "TA"]
[PlyCount "72"]
[EventDate "2022.07.25"]
[EventType "tourn"]
[EventCountry "POR"]
[SourceTitle "playchess.com"]
[Source "ChessBase"]
[SourceQuality "1"]
[TimeControl "5400+30"]

{[%evp 17,72,27,30,22,27,32,37,32,43,7,59,33,33,36,39,28,85,62,96,85,89,-30,86,79,88,87,91,12,12,-3,0,-274,149,185,122,83,324,306,304,156,350,345,329,208,328,-485,-434,-29981,-29982,-29981,-29982,-29982,-29983,-29983,-29984,-29985,-2967]} 1. e4 {[%emt 0:00:03]} c5 {[%emt 0:00:09]} 2. Nf3 {[%emt 0:00:34]} d6 {[%emt 0:00:05]} 3. d4 {[%emt 0:00:04]} cxd4 {[%emt 0:00:03]} 4. Nxd4 {[%emt 0:00:14]} Nf6 {[%emt 0:00:06]} 5. Nc3 {[%emt 0:00:14]} a6 {[%emt 0:00:04]} 6. Be3 {[%emt 0:00:30]} e5 {[%emt 0:00:16]} 7. Nb3 {[%emt 0:00:06]} Be7 {[%emt 0:00:43]} 8. f3 {[%emt 0:00:37]} h5 {[%emt 0:00:18]} 9. Qd2 {[%emt 0:02:05]} Be6 {[%emt 0:00:10]} 10. Nd5 {[%emt 0:02:19] B90: Sicilian Najdorf: Unusual White 6th moves, 6 Be3 Ng4 and 6 Be3 e5.} Bxd5 {[%emt 0:02:31]} 11. exd5 {[%emt 0:00:08]} O-O {[%emt 0:00:15]} 12. O-O-O {[%emt 0:01:37] White is slightly better.} a5 {[%emt 0:00:12]} 13. a4 {[%emt 0:00:13]} Nbd7 {[%emt 0:01:51]} (13... Na6 $11) 14. Bb5 {[%emt 0:04:32]} Nb6 {[%emt 0:00:19]} 15. Bxb6 {[%emt 0:06:28]} (15. Nxa5 Nfxd5 16. Bxb6 (16. Nxb7 Qc7 $17) 16... Nxb6 $17) 15... Qxb6 {[%emt 0:00:05] [#]} 16. Qe2 $146 {[%emt 0:05:56]} ({Predecessor:} 16. Kb1 Qd8 17. h4 Nh7 18. g4 f5 19. gxh5 Bxh4 20. f4 Bg3 21. fxe5 Bxe5 {½-½ (43) Lutz,C (2608)-Tihonov,J (2472) Turin 2006}) 16... Rfc8 {[%emt 0:00:47]} (16... Ne8 $11) 17. h4 {[%emt 0:01:36]} Bf8 {[%emt 0:00:10]} 18. g4 {[%emt 0:00:30]} g6 {[%emt 0:00:37]} 19. Rhg1 {[%emt 0:15:59]} (19. g5 Ne8 $11) ({White should try} 19. Kb1 $16) 19... Bg7 {[%emt 0:00:10]} (19... hxg4 $11 20. fxg4 Nxd5 $1 {[%mdl 512]}) 20. Rg2 $16 {[%emt 0:00:48]} Rc7 {[%emt 0:02:49]} 21. Kb1 {[%emt 0:03:20]} Rac8 {[%emt 0:00:13]} 22. Qe1 {[%emt 0:01:20]} (22. c3 $16) 22... e4 $1 $11 {[%emt 0:04:07]} 23. gxh5 {[%emt 0:09:40]} exf3 {[%emt 0:00:50]} 24. Rxg6 {[%emt 0:19:05][%mdl 8192]} f2 $2 {[%emt 0:04:22] [#]} (24... Rxc2 {[#]} 25. h6 $1 fxg6 26. Qe6+ Kh7 27. hxg7 $16) (24... Nxh5 25. Rxg7+ Nxg7 26. Nd4 $16) (24... fxg6 $19 25. Qe6+ Kh7 26. hxg6+ Kh8) 25. Rxg7+ $1 $16 {[%emt 0:00:28][%mdl 512]} Kxg7 {[%emt 0:00:08]} 26. Qd2 {[%emt 0:00:08]} Nh7 {[%emt 0:03:48] Against Qg5+} (26... Ne4 $16 27. Qe2 (27. Qf4 Rc4 $14) 27... f5) 27. Nd4 $18 {[%emt 0:00:15]} Kh8 {[%emt 0:00:43]} 28. Qh6 {[%emt 0:01:33]} (28. Qxf2 $18 Rxc2 29. Qf5 (29. Qxf7 Qc7 $14) 29... Rc1+ 30. Rxc1 Rxc1+ 31. Kxc1 Qxd4 32. Qxf7) 28... f6 $2 {[%emt 0:02:18]} (28... Rg8 $16) 29. Ne6 {[%emt 0:01:45] Black must now prevent Bd3.} Rg8 {[%emt 0:00:47]} 30. Bd3 {[%emt 0:03:43] Intending Bxh7 and mate.} f5 {[%emt 0:04:10]} (30... Rg1 {was necessary.} 31. Bxh7 Rxd1+ 32. Ka2 Ra1+ 33. Kxa1 f1=Q+ 34. Ka2 Qe3 35. Qxe3 Rxh7) 31. Bxf5 $4 {[%emt 0:00:55][%mdl 8192]} (31. Nxc7 $18 {is the narrow road to win.} Qxc7 32. Qf4 (32. Bxf5 Rg1 $11)) 31... Rg1 $19 {[%emt 0:00:21]} 32. Bxh7 {[%emt 0:00:05]} (32. Qc1 $19 Qe3 33. Qxe3 Rxd1+ 34. Ka2) 32... Rxd1+ {[%emt 0:00:08] Black mates.} 33. Ka2 {[%emt 0:00:10] [#]} Ra1+ $3 {[%emt 0:00:20][%mdl 512]} 34. Kxa1 {[%emt 0:00:10]} f1=Q+ {[%emt 0:00:08]} 35. Ka2 {[%emt 0:00:09]} Rxh7 {[%emt 0:00:07]} 36. Qg6 {[%emt 0:01:10]} Qf7 {[%emt 0:00:32] Weighted Error Value: White=0.80/Black=0.63} (36... Qbg1 $142 37. Qe8+ Qg8 38. Qb5 Qxb5 39. axb5 Rxh5 40. Kb3 Rxd5 41. Ka4 Qxe6 42. Kxa5 Qe2 43. c4 Qxc4 44. Kb6 Rxb5+ 45. Ka7 Qc7 46. b4 Rxb4 47. h5 Ra4#) 0-1

[Event "IX Famalicao Open 2022"]
[Site "Vila Nova de Famalicao"]
[Date "2022.07.27"]
[Round "5.11"]
[White "Suarez Rozas, David"]
[Black "Akshit Kumar J"]
[Result "1-0"]
[ECO "D03"]
[WhiteElo "1772"]
[BlackElo "2103"]
[Annotator "TA"]
[PlyCount "96"]
[EventDate "2022.07.25"]
[EventType "tourn"]
[EventCountry "POR"]
[SourceTitle "playchess.com"]
[Source "ChessBase"]
[SourceQuality "1"]
[TimeControl "5400+30"]

{[%evp 11,96,0,25,14,10,11,4,-18,4,4,56,26,35,11,21,31,22,32,26,20,50,46,35,25,19,0,89,-16,-16,-16,-19,-25,-25,-23,-19,-167,-171,-255,-262,-247,-240,-456,-455,-450,-424,-400,-197,-186,-68,-66,-66,-72,0,0,0,0,0,0,0,-14,-14,-29,-43,-76,-54,-70,-64,-97,-75,-598,-598,-598,-598,-598,-598,-591,-572,-564,-548,-768,-787,-1250,-1194,-1138,-1080,-761,-545]} 1. d4 Nf6 2. Nf3 d5 3. Bg5 Ne4 4. Bf4 c5 5. c3 Nc6 6. e3 Qb6 7. Qb3 {D03: 1 d4 d5 2 Nf3 Nf6 3 Bg5, including Torre Attack with early ...d5.} c4 8. Qxb6 axb6 9. Nbd2 {The position is equal.} Nxd2 {9...Bf5 is the hot move.} 10. Nxd2 {[#]} f5 $146 {Inhibits e4.} (10... b5 $11) ({Predecessor:} 10... b5 11. e4 e6 12. Be2 Be7 13. Bf3 g5 14. Bg3 dxe4 15. Nxe4 f5 16. Nd6+ Kd7 {½-½ (63) Jacquin,R (2536)-Piccoli,F (2665) ICCF email 2008}) 11. g4 fxg4 12. e4 e6 13. Bg2 {[%mdl 1024] White has compensation.} Ra5 14. O-O Be7 15. a4 O-O 16. Bc7 {exd5 is the strong threat.} Bd8 17. Bd6 Be7 18. Bc7 {Strongly threatening exd5.} Bg5 (18... Bd8 $1 $11 {remains equal.} 19. Bd6 Be7 20. Bc7) 19. b4 {[#]} (19. exd5 $16 exd5 20. b4) 19... Bxd2 $1 $11 {[%cal Bg5d2,Bd2c3,Bc3d4][%mdl 32]} 20. bxa5 {Hoping for Ra3.} Bxc3 21. exd5 Nxd4 (21... Bxa1 22. dxc6 Bxd4 23. cxb7 Bxb7 24. Bxb7 bxa5 25. Bxa5 $18) 22. Rab1 bxa5 {White should prevent ...Bb4.} 23. Rfc1 (23. dxe6 $11 {and White is okay.} Bxe6 24. Rxb7) 23... Ne2+ $19 24. Kf1 (24. Kh1 {keeps fighting.}) 24... Nxc1 25. Rxc1 Bd4 26. Rc2 (26. Rxc4 Rxf2+ 27. Ke1 Rxg2 28. Rxd4) 26... b6 27. d6 c3 {White must now prevent ...Ba6+.} 28. Bc6 Bxf2 29. Kg2 {[#]} Bd4 (29... Rf7 $1 $19 {And now ...Bd4 would win.} 30. Rxc3 (30. Rxf2 $2 Rxf2+ 31. Kxf2 c2 $19) 30... Bc5) 30. d7 $15 {[#]} Bxd7 31. Bxd7 {[#]} Rf6 ({Black should play} 31... Kf7 $1 $17 32. Re2 e5 33. Bxg4 Kf6) 32. Bd8 $1 $11 Rh6 33. Bg5 Rg6 34. Bh4 Kf7 35. Rc1 Rh6 36. Rf1+ Bf6 $1 37. Bf2 Ke7 38. Bb5 Be5 39. Bg1 Rh3 {Threatens to win with ...c2.} 40. Be2 $2 {[%mdl 8192]} (40. Rc1 $17 {stays breathing.}) 40... c2 $19 {Black is clearly winning.} 41. Rc1 Rc3 42. Bxb6 Bf4 43. Bxa5 Rc8 ({Not} 43... Bxc1 44. Bxc3 Bg5 45. Bb2 $15) 44. Bb4+ Kf6 45. Ba6 Rc7 ({Weaker is} 45... Bxc1 46. Bxc8 Bg5 47. Ba3 $17) 46. Ba3 Bxc1 47. Bxc1 Rd7 48. Bb2+ Kf7 {[%mdl 32768] Weighted Error Value: White=0.60/Black=0.17 (very precise) . Sensor Board Error (Ke4/e5)?} 1-0

[Event "IX Famalicao Open 2022"]
[Site "Vila Nova de Famalicao"]
[Date "2022.07.27"]
[Round "5.12"]
[White "Quintas Otero, Anton"]
[Black "Romano, Joao"]
[Result "0-1"]
[ECO "C54"]
[WhiteElo "1730"]
[BlackElo "2029"]
[Annotator "TA"]
[PlyCount "70"]
[EventDate "2022.07.25"]
[EventType "tourn"]
[EventCountry "POR"]
[SourceTitle "playchess.com"]
[Source "ChessBase"]
[SourceQuality "1"]
[TimeControl "5400+30"]

{[%evp 17,70,-7,0,5,27,-25,17,-35,-35,-259,-143,-189,0,0,27,0,7,4,0,-89,30,-2,97,-20,-16,-22,-25,-18,-20,-12,0,0,0,0,14,16,31,31,37,0,0,-14,0,0,0,-12,0,-444,-410,-446,-428,-1089,-399,-1096,-1072]} 1. e4 {[%emt 0:00:03]} e5 {[%emt 0:21:00]} 2. Nf3 {[%emt 0:00:07]} Nc6 {[%emt 0:00:15]} 3. Bc4 {[%emt 0:00:05]} Bc5 {[%emt 0:00:43]} 4. c3 {[%emt 0:00:08]} Nf6 {[%emt 0:00:16]} 5. d4 {[%emt 0:00:26]} exd4 {[%emt 0:01:12]} 6. e5 {[%emt 0:00:26]} d5 {[%emt 0:01:15]} 7. Bb5 {[%emt 0:00:20]} Ne4 {[%emt 0:00:31]} 8. cxd4 {[%emt 0:00:36]} Bb6 {[%emt 0:02:34]} 9. Nc3 {[%emt 0:00:39]} O-O {[%emt 0:03:10]} 10. Be3 {[%emt 0:00:56] C54: Giuoco Piano: 4 c3 Nf6, main lines with 5 d4 and 5 d3.} Bf5 {[%emt 0:10:13]} 11. Qb3 (11. O-O $142) 11... Ne7 {[%emt 0:15:31] [#]} (11... Na5 $5 {[%cal Ra5b3]} 12. Qb4 (12. Qxd5 Qe7 $15) 12... a6 $11) 12. Nh4 $146 {[%emt 0:23:15]} ({Better is} 12. Rd1 $11) ({Predecessor:} 12. O-O c6 13. Be2 Rb8 14. Na4 Bc7 15. Nh4 f6 16. Bf3 b5 17. Nc3 Nxc3 18. exf6 {0-1 (33) So,W (2770)-Carlsen,M (2847) chess24.com INT 2021}) 12... Be6 $15 {[%emt 0:00:15] Strongly threatening ...c5.} 13. f4 $2 {[%emt 0:01:51]} ({White should try} 13. Qa3 $15) 13... c6 {[%emt 0:03:58]} (13... c5 $1 $19 {[%cal Rc5d4]} 14. dxc5 d4) 14. Be2 {[%emt 0:04:05] [#]} (14. f5 $17 {might work better.}) 14... Qd7 $2 {[%emt 0:04:28]} (14... c5 $1 $19 {[%cal Rc5d4]} 15. f5 Bxf5 16. Nxe4 Bxe4 17. dxc5 Ba5+ 18. Kf1 Nc6) 15. O-O $11 {[%emt 0:08:15]} Rae8 {[%emt 0:13:05]} 16. a4 {[%emt 0:07:10][%cal Ba2a4,Ba4a5][%mdl 32]} (16. Na4 $5 {[%cal Ra4b6]}) 16... f6 {[%emt 0:01:45]} 17. a5 {[%emt 0:04:11]} Bd8 {[%emt 0:00:04]} 18. Bd3 {[%emt 0:01:39] [#]} (18. Qd1 $11) 18... Kh8 {[%emt 0:02:17]} (18... fxe5 $1 $17 19. dxe5 d4) 19. Qc2 {[%emt 0:03:19]} f5 {[%emt 0:03:24]} (19... g5 $11 {remains equal.} 20. exf6 (20. Bxe4 dxe4 21. fxg5 fxg5 $11) 20... gxh4 21. fxe7 (21. Nxe4 dxe4 22. fxe7 Rxe7 $15) (21. Bxe4 Nf5 $17) 21... Rxe7) 20. Rf3 {[%emt 0:01:38]} (20. b4 $16) 20... c5 {[%emt 0:05:02] Threatens to win with ...Nc6.} 21. Bb5 {[%emt 0:01:27]} Nc6 {[%emt 0:00:07]} 22. Rh3 {[%emt 0:00:27]} Bxh4 {[%emt 0:00:10]} 23. Rxh4 {[%emt 0:00:07]} cxd4 {[%emt 0:00:07]} 24. Bxc6 {[%emt 0:00:44][%mdl 64] Remove Defender} bxc6 {[%emt 0:01:12]} 25. Bxd4 {[%emt 0:00:07]} Rc8 {[%emt 0:04:21] aiming for ...c5.} 26. Nxe4 dxe4 {[%emt 0:00:06]} 27. Bc5 {[%emt 0:03:42]} Rfd8 {[%emt 0:00:39]} 28. Bd6 {[%emt 0:00:35]} c5 {[%emt 0:00:04]} 29. Qe2 {[%emt 0:02:07]} c4 {[%emt 0:01:08]} 30. Qh5 {[%emt 0:01:44][%csl Gh4][%cal Rh5h7]} h6 {[%emt 0:02:13]} 31. Ra3 {[%emt 0:02:55] Black must now prevent Rg3.} c3 {[%emt 0:00:04]} 32. bxc3 {[%emt 0:05:10][%mdl 8192]} ({Much worse is} 32. Rxc3 Rxc3 33. bxc3 Qb7 $15) (32. Qg6 $1 $11) 32... Qb5 $19 {[%emt 0:00:41] ...Qb1+ is the strong threat.} 33. Qd1 {[%emt 0:00:13] Prevents Qb1.} Qc5+ {[%emt 0:00:25]} 34. Bxc5 {[%emt 0:00:34]} (34. Qd4 $142 Rxd6 35. Rxh6+ (35. exd6 $2 {perishes.} Qxa3 36. Rxh6+ Kg8 $19) 35... gxh6 36. exd6+ Qxd4+ 37. cxd4) 34... Rxd1+ {[%emt 0:00:06]} 35. Kf2 {[%emt 0:00:23]} Rxc5 {[%emt 0:00:04] Weighted Error Value: White=0.78/Black=0.35} 0-1

[Event "IX Famalicao Open 2022"]
[Site "Vila Nova de Famalicao"]
[Date "2022.07.27"]
[Round "6.1"]
[White "Abdisalimov, Abdimalik"]
[Black "Das, Sayantan"]
[Result "1-0"]
[ECO "E70"]
[WhiteElo "2437"]
[BlackElo "2449"]
[Annotator "TA"]
[PlyCount "71"]
[EventDate "2022.07.25"]
[EventType "tourn"]
[EventCountry "POR"]
[SourceTitle "playchess.com"]
[Source "ChessBase"]
[SourceQuality "1"]
[TimeControl "5400+30"]

{[%evp 12,71,34,28,31,32,29,22,27,27,16,0,0,4,12,2,19,0,24,0,35,32,42,39,30,0,0,0,164,140,156,165,185,141,367,345,359,302,317,323,318,306,302,300,296,266,441,435,420,303,263,216,751,780,747,730,710,708,5010,3137,2863,2289]} 1. c4 Nf6 2. Nc3 g6 3. d4 Bg7 4. e4 d6 5. Nge2 O-O 6. f3 a6 7. Be3 b5 {E81: King's Indian: Sämisch: 6th move deviations (including 6 Be3 c6).} 8. cxb5 axb5 9. Nxb5 c6 {The position is equal.} 10. Nbc3 Nbd7 {[%cal Bb8d7,Bd7e5,Be5c4][%mdl 32]} 11. Nf4 e5 12. dxe5 Nxe5 {[%cal Od6d5]} 13. Be2 $1 d5 14. O-O {[%cal Re4d5]} Re8 {[#]} 15. Bd4 $146 ({Predecessor:} 15. Kh1 dxe4 16. fxe4 g5 17. Nh3 h6 18. Qc2 Nfg4 19. Bg1 Qa5 20. a3 Ng6 21. Bxg4 Bxg4 {½-½ (37) Legemaat,G (2351)-Ozols,A (2335) ICCF email 2018}) 15... g5 16. Nd3 Nc4 {[%cal Rd5e4]} 17. Nb4 Qd6 {[#]} 18. Nxc6 Qxc6 19. exd5 Qa6 (19... Nxd5 $11 20. Bxg7 Rxe2 21. Nxe2 Nce3) 20. b3 $36 {[%mdl 2048] White has strong initiative.} Rxe2 21. Qxe2 Na3 22. Qb2 Rb8 $2 {This move loses the game for Black.} (22... Bf5 $16) 23. Ne4 {[%cal Rd4f6]} Nc4 24. Qf2 ({Not} 24. Nxf6+ Bxf6 25. Qf2 Na3 $18) 24... Nxe4 25. fxe4 {[%cal Bf3e4,Be4e5][%mdl 32]} Bxd4 26. Qxd4 {The board is on fire.} Qb6 27. Qxb6 Nxb6 28. Rac1 {Threatens to win with a4.} Bd7 (28... f5 {was worth a try.} 29. exf5 Nxd5) 29. Rc7 Kf8 30. e5 {[#] e6 is the strong threat.} Ke7 {Prevents e6.} 31. Rf6 {Black must now prevent Rd6.} h5 $2 (31... Nxd5 32. Rxd7+ Kxd7 33. Rd6+ Ke7) 32. Rd6 {White is clearly winning.} Ke8 33. Rh6 {aiming for d6.} Kd8 34. d6 {Threatening mate with Rh8+.} Nd5 35. Rh8+ Be8 36. Rxf7 {Weighted Error Value: White=0.19 (very precise) /Black=0.35} 1-0

[Event "IX Famalicao Open 2022"]
[Site "Vila Nova de Famalicao"]
[Date "2022.07.27"]
[Round "6.2"]
[White "Krishna C R G"]
[Black "Akhvlediani, Irakli"]
[Result "1/2-1/2"]
[ECO "E06"]
[WhiteElo "2430"]
[BlackElo "2429"]
[Annotator "TA"]
[PlyCount "55"]
[EventDate "2022.07.25"]
[EventType "tourn"]
[EventCountry "POR"]
[SourceTitle "playchess.com"]
[Source "ChessBase"]
[SourceQuality "1"]
[TimeControl "5400+30"]

{[%evp 15,55,8,28,0,0,0,21,0,0,0,2,0,3,3,2,0,0,0,0,0,0,0,0,-4,-7,-11,0,-4,0,-11,-3,-1,-7,-12,0,-9,0,-10,0,-11,0,-13]} 1. d4 {[%emt 0:00:04]} Nf6 {[%emt 0:00:05]} 2. c4 {[%emt 0:00:11]} e6 {[%emt 0:00:14]} 3. g3 {[%emt 0:01:27]} d5 {[%emt 0:00:24]} 4. Bg2 {[%emt 0:00:03]} Be7 {[%emt 0:00:17]} 5. Nf3 {[%emt 0:00:21]} O-O {[%emt 0:00:11]} 6. O-O {[%emt 0:00:04]} dxc4 {[%emt 0:00:33]} 7. Qc2 {[%emt 0:00:06]} a6 {[%emt 0:00:05]} 8. a4 {[%emt 0:00:15] The main line 8.a4 scores better than 8.Qxc4.} Nbd7 {[%emt 0:01:18]} 9. Bf4 {[%emt 0:21:16] E05: Open Catalan: 5 Nf3 Be7.} Nd5 {[%emt 0:24:08] [#] The position is equal.} 10. Na3 $146 {[%emt 0:02:34]} ({Predecessor:} 10. Nbd2 b6 11. Nxc4 Nxf4 12. gxf4 Bb7 13. Rac1 Nf6 14. Nce5 Nd5 15. e3 c5 16. dxc5 bxc5 {½-½ (41) Toniutti,E (2133)-Avalos Parra,J (2251) Asuncion 2011}) 10... c5 {[%emt 0:10:03]} 11. Nxc4 Nxf4 {[%emt 0:00:21]} 12. gxf4 {[%emt 0:10:00]} cxd4 {[%emt 0:00:06]} 13. Nxd4 {[%emt 0:10:27]} Qc7 {[%emt 0:00:29]} 14. e3 {[%emt 0:05:23]} Bf6 {[%emt 0:01:19]} 15. Rfd1 {[%emt 0:00:37]} e5 {[%emt 0:00:23]} 16. Nxe5 {[%emt 0:00:24]} Qxc2 {[%emt 0:00:05]} 17. Nxc2 {[%emt 0:00:03]} Nxe5 {[%emt 0:00:04]} 18. fxe5 {[%emt 0:00:03]} Bxe5 {[%emt 0:00:03]} 19. Nd4 {[%emt 0:00:18]} Rb8 {[%emt 0:08:54]} 20. h3 {[%emt 0:06:48]} Bf6 {[%emt 0:10:01]} 21. Rac1 {[%emt 0:03:03]} Bd7 {[%emt 0:00:24]} 22. b3 {[%emt 0:00:39]} Rfc8 {[%emt 0:00:41]} 23. Rxc8+ {[%emt 0:02:12]} Bxc8 {[%emt 0:00:08]} 24. Rc1 {[%emt 0:12:55]} Be5 {[%emt 0:07:41]} 25. Rd1 {[%emt 0:00:04][%cal Od4c6]} Bf6 {[%emt 0:00:03]} 26. Rc1 {[%emt 0:00:05]} Be5 {[%emt 0:00:04]} 27. Rd1 {[%emt 0:00:04][%cal Od4c6]} Bf6 {[%emt 0:00:05]} 28. Rc1 {An interesting draw.  Weighted Error Value: White=0.05 (flawless) /Black=0.05 (flawless)} 1/2-1/2

[Event "IX Famalicao Open 2022"]
[Site "Vila Nova de Famalicao"]
[Date "2022.07.27"]
[Round "6.3"]
[White "Dias, Paulo"]
[Black "Martinez Duany, Lelys Stanley"]
[Result "0-1"]
[ECO "A56"]
[WhiteElo "2348"]
[BlackElo "2497"]
[Annotator "TA"]
[PlyCount "64"]
[EventDate "2022.07.25"]
[EventType "tourn"]
[EventCountry "POR"]
[SourceTitle "playchess.com"]
[Source "ChessBase"]
[SourceQuality "1"]
[TimeControl "5400+30"]

{[%evp 14,64,71,62,63,-10,-4,-4,-14,-8,31,39,37,-38,0,-30,47,35,35,47,39,-85,-63,-75,-29,-102,-116,-138,-142,-147,-156,-127,-143,-105,-93,-108,-98,-226,-113,-688,-641,-1569,-1563,-1562,-1555,-29984,-1555,-29985,-29986,-29986,-29987,-29987,-29988]} 1. d4 {[%emt 0:00:04]} Nf6 {[%emt 0:00:21]} 2. c4 {[%emt 0:00:07]} c5 {[%emt 0:00:27]} 3. d5 {[%emt 0:00:20]} g6 {[%emt 0:00:48]} 4. Nc3 {[%emt 0:00:16]} Bg7 {[%emt 0:00:10]} 5. e4 {[%emt 0:00:33]} d6 {[%emt 0:00:06]} 6. Nf3 {[%emt 0:00:37]} O-O {[%emt 0:00:27]} 7. Bd3 {[%emt 0:00:22]} e5 {[%emt 0:00:43]} 8. h3 {[%emt 0:06:03] was the old line (8.0-0).} Nh5 {[%emt 0:02:41] E90: King's Indian: Classical: Early deviations and 6 h3.} 9. g4 {[%emt 0:05:50]} (9. Bc2 $14) 9... Nf4 $11 {[%emt 0:00:18]} 10. Bxf4 {[%emt 0:00:43]} exf4 {[%emt 0:00:05] The position is equal.} 11. Qd2 {[%emt 0:00:43]} Nd7 {[%emt 0:00:40]} 12. Qxf4 {[%emt 0:01:28]} Ne5 {[%emt 0:01:58]} 13. O-O-O {[%emt 0:08:38] [#]} (13. Nxe5 $14 Bxe5 14. Qf3) 13... b5 $146 {[%emt 0:02:07]} ({Predecessor:} 13... a6 14. Qe3 Nxf3 15. Qxf3 b5 16. Qg3 Rb8 {½-½ (16) Stojkovska,M (2113)-Ivanov,M (2369) Novi Sad 2018}) 14. Nxb5 {[%emt 0:13:00]} Rb8 {[%emt 0:00:14]} (14... Nxf3 $11 15. Qxf3 Qa5) 15. Nxe5 $1 $14 {[%emt 0:02:20]} Bxe5 {[%emt 0:00:09]} 16. Qd2 {[%emt 0:01:16]} Qf6 {[%emt 0:10:04] Prevents f4.} 17. g5 {[%emt 0:03:39]} (17. Kc2 $1 $14) 17... Qf3 $17 {[%emt 0:00:11][%mdl 1024] Black has strong compensation.} 18. Qe2 {[%emt 0:02:06]} Qf4+ {[%emt 0:00:17]} 19. Qd2 {[%emt 0:03:40]} (19. Kc2 $1 $11) 19... Qh4 {[%emt 0:00:45]} 20. Kb1 {[%emt 0:02:02]} a6 {[%emt 0:01:49]} 21. Nc3 {[%emt 0:00:30] [#]} f6 $1 {[%emt 0:00:29]} (21... Bf4 $6 22. Qc2 $11) 22. gxf6 {[%emt 0:14:47]} Rxf6 {[%emt 0:00:45]} (22... Qxf6 23. Ka1) 23. Rdf1 {[%emt 0:00:20]} Rf3 {[%emt 0:00:19] And now ...Qf6 would win.} 24. Nd1 {[%emt 0:04:18]} Bd7 {[%emt 0:00:45] Black is much more active.} 25. Qc2 {[%emt 0:04:13] [#]} (25. Bc2 $17) 25... Rb4 {[%emt 0:04:46]} ({And not} 25... Rxh3 26. Rxh3 Qxh3 27. f4 $11) ({Black should play} 25... Qf6 $1 $19 {[%cal Oe5b2] ...Bxb2! is the strong threat.} 26. b3 a5) 26. Be2 $2 {[%emt 0:05:30][%mdl 8192]} (26. Rhg1 $17) 26... Ba4 $19 {[%emt 0:00:25] A strong pair of Bishops.} ({Inferior is} 26... Rxh3 27. Rxh3 Qxh3 28. f4 $11) 27. b3 {[%emt 0:01:51] [#]} Bxb3 $1 {[%emt 0:00:11][%mdl 576] Demolition} 28. axb3 {[%emt 0:00:08]} Rbxb3+ {[%emt 0:00:41]} 29. Kc1 {[%emt 0:00:24]} Qh6+ {[%emt 0:06:53]} (29... Qf4+ $142 30. Ne3 Rfxe3 31. fxe3 Qxe3+ 32. Kd1 Qd4+ 33. Bd3 Rxd3+ 34. Qxd3 Qxd3+ 35. Kc1 Qe3+ 36. Kd1 Bc3 37. Rf8+ Kxf8 38. Rh2 Qe1+ 39. Kc2 Be5 40. Rd2 Bf4 41. Rd3 Qe2+ 42. Kb3 Qxd3+ 43. Kb2 Qe2+ 44. Kc3 Be5+ 45. Kb3 Qb2+ 46. Ka4 Qb4#) 30. Ne3 {[%emt 0:00:50]} Rfxe3 {[%emt 0:00:10] Black mates.} 31. fxe3 {[%emt 0:00:52]} Qxe3+ {[%emt 0:00:08]} ({Stronger than} 31... Rc3 32. Rf3 $15) 32. Kd1 {[%emt 0:01:39]} Qd4+ {[%emt 0:01:43] Weighted Error Value: White=1.12/Black=0.50} 0-1

[Event "IX Famalicao Open 2022"]
[Site "Vila Nova de Famalicao"]
[Date "2022.07.27"]
[Round "6.4"]
[White "Rodriguez Lopez, Rafael"]
[Black "Spraggett, Kevin"]
[Result "1-0"]
[ECO "B47"]
[WhiteElo "2172"]
[BlackElo "2487"]
[Annotator "TA"]
[PlyCount "91"]
[EventDate "2022.07.25"]
[EventType "tourn"]
[EventCountry "POR"]
[SourceTitle "playchess.com"]
[Source "ChessBase"]
[SourceQuality "1"]
[TimeControl "5400+30"]

{[%evp 13,91,16,38,44,49,55,46,39,46,39,45,25,35,18,23,7,16,0,20,0,0,-28,-31,-31,5,-82,-72,-83,-80,-76,-88,-60,-8,-41,-15,-38,0,-17,0,-34,0,-47,-27,-20,0,-41,-22,-47,-21,-37,-18,-42,-9,-12,0,0,0,-23,-20,-20,-16,-79,-72,-68,0,-29,-14,-187,-186,-171,-35,-25,-21,-21,0,0,29987,29988,29984,29985]} 1. e4 c5 2. Nf3 e6 3. d4 cxd4 4. Nxd4 Nc6 5. Nc3 Qc7 6. g3 a6 7. Bg2 d6 8. Nxc6 {B47: Sicilian: Taimanov: 5 Nc3 Qc7 6 f4, 6 g3 and 6 Be2.} bxc6 9. O-O Bb7 10. Na4 {White is slightly better.} Nf6 11. c4 {[%cal Oc4c5]} c5 12. Nc3 Be7 {[%cal Bf8e7,Be7f6,Bf6d4][%mdl 32]} 13. b3 Nd7 14. f4 O-O 15. Bb2 Rad8 16. Qe2 Bf6 17. Rad1 Bd4+ 18. Kh1 {[#]} Rfe8 $146 {[%cal Od6d5]} ({Predecessor:} 18... Bc6 19. g4 Rfe8 20. Qd3 Nf6 21. h3 Qb7 22. Rde1 d5 23. e5 Ne4 24. Nxe4 dxe4 {½-½ (64) Votava,J (2506)-Suran,J (2332) Germany 2001}) 19. g4 (19. Nb1 $11) 19... d5 $17 20. cxd5 exd5 21. e5 Bxc3 22. Bxc3 Nf6 (22... d4 $15 23. Be1 f6) 23. Qf3 Ne4 24. Ba1 Ba8 25. Qd3 a5 26. Qc2 Rc8 27. Rc1 (27. Kg1 $11 {feels stronger.}) 27... Qb8 28. Qd3 Qb4 29. Rc2 a4 30. Rfc1 axb3 31. axb3 Rb8 32. Kg1 h6 (32... Qxb3 33. Qxb3 Rxb3 34. Bxe4 dxe4 35. Rxc5 $14) 33. Qe3 Qa3 34. Bxe4 dxe4 35. Rxc5 {[%cal Oe5e6]} Rxb3 36. R5c3 Rxc3 37. Qxc3 (37. Bxc3 $11 Rd8 38. Bd4) 37... Qa7+ 38. Qd4 Qa3 (38... Qb7 $5 {[%cal Re4e3]} 39. e6 fxe6 $17) 39. Qc3 Qa2 {[%cal Oe4e3] ( -> ...e3!)} 40. Qb2 $2 (40. Qe3 $1 $11) 40... Qa6 $1 $19 {Hoping for ...e3.} 41. f5 {[%cal Oe5e6]} e3 ({Better is} 41... Rd8 $19 {Threatens to win with ...Qa7+.} 42. e6 Qa7+ 43. Kf1 (43. Qf2 $2 e3 $19) 43... f6) 42. e6 $1 $15 {[%csl Ga1][%cal Rb2g7]} f6 43. Rc7 {[%cal Oc7g7] Threatening mate with Rxg7+!} Qa4 {[%cal Ra4d1]} 44. Qd4 {Prevents Qd1+. Really sharp!} (44. Rxg7+ $2 Kh8 45. Qd4 Qc6 46. Rh7+ Kxh7 $19) 44... Qb5 {[%mdl 8192] [#]} (44... Qa2 {is a self mate.} 45. Rxg7+ $3 {[%mdl 512]} (45. Bb2 Kh8 $11) 45... Kh8 46. Rh7+ $3 {[%mdl 512]} Kxh7 47. Qd7+) (44... e2 $11 45. Kf2 (45. Qxa4 $2 e1=Q#) (45. Rxg7+ $2 Kh8 $19) 45... e1=B+ 46. Kxe1 Qa5+ 47. Qc3 Qb6) 45. Rxg7+ $3 {[%mdl 512]} Kh8 {[#]} 46. Rb7 $3 {[%mdl 512] Weighted Error Value: White=0.24 (precise) /Black=0.34} 1-0